bitfinex/quotes_ETHUSD_20240707
["timestamp","ask_amount","ask_price","bid_price","bid_amount"]
[1720369933452,2.2767,2986.2,2985.9,2.3443]
[1720369933611,3.0,2986.0,2985.5,2.34461]
[1720369933812,2.2767,2985.9,2985.4,2.3447]
[1720369934057,2.2767,2985.9,2985.5,2.34459]
[1720369935485,2.2767,2985.9,2985.6,2.34458]
[1720369936472,2.2767,2986.2,2985.9,2.3443]
[1720369936985,2.2767,2986.2,2985.7,4.68894]
[1720369937492,2.2767,2986.2,2985.4,2.265]
[1720369937646,2.2767,2986.2,2985.9,2.34429]
[1720369938286,2.2767,2986.2,2986.0,2.34427]
[1720369939186,2.251,2986.4,2986.2,2.3441]
[1720369939479,2.251,2986.4,2986.2,2.34405]
[1720369939682,2.251,2986.4,2986.3,2.34403]
[1720369940815,2.251,2986.7,2986.4,2.34394]
[1720369941281,2.251,2986.7,2986.5,2.34383]
[1720369941577,10.45,2986.9,2986.6,2.3438]
[1720369941780,10.45,2986.9,2986.7,2.34367]
[1720369942340,10.45,2986.9,2986.8,2.34364]
[1720369942985,10.45,2986.9,2986.6,4.68754]
[1720369943284,7.45,2986.9,2986.8,2.34364]
[1720369945561,3.0,2987.2,2986.9,2.34352]
[1720369946391,3.0,2987.2,2986.9,4.687]
[1720369947192,10.40100001,2987.4,2987.0,2.34348]
[1720369947399,9.701,2987.4,2987.3,2.34325]
[1720369948006,9.701,2987.4,2987.3,4.6865]
[1720369948007,7.45,2987.4,2987.3,4.6865]
[1720369948151,13.40100001,2987.9,2987.6,2.34301]
[1720369948351,1.15957777,2987.8,2987.6,2.34301]
[1720369948551,5.251,2987.9,2987.6,2.34297]
[1720369948908,1.15954898,2987.8,2987.6,2.34297]
[1720369949056,5.251,2987.9,2987.6,2.34297]
[1720369949404,14.94,2988.2,2987.9,2.34274]
[1720369950768,14.94,2988.2,2987.7,2.3429]
[1720369950950,2.251,2987.5,2986.5,2.2727]
[1720369951161,2.251,2987.5,2987.1,2.34334]
[1720369951376,3.0,2987.2,2986.9,2.34352]
[1720369951705,2.251,2987.5,2987.0,2.34344]
[1720369951706,5.251,2987.5,2987.0,2.34344]
[1720369952489,3.0,2987.2,2986.5,2.265]
[1720369952703,3.0,2987.2,2985.8,2.3444]
[1720369952704,3.0,2987.2,2986.6,2.34379]
[1720369952865,3.0,2987.2,2986.8,2.34362]
[1720369953052,3.0,2987.2,2986.9,2.34354]
[1720369955393,3.0,2987.2,2986.9,4.68705]
[1720369955598,2.251,2987.5,2987.1,2.34339]
[1720369955784,7.45,2987.6,2986.5,4.60884]
[1720369955785,7.45,2987.6,2987.4,2.34312]
[1720369955979,23.09000001,2988.1,2987.5,2.34304]
[1720369956204,7.45,2988.1,2987.5,2.34304]
[1720369956423,7.45,2988.1,2987.5,2.58403856]
[1720369956591,7.45,2988.1,2987.7,2.34287]
[1720369956982,7.45,2988.1,2987.9,2.34277]
[1720369958310,7.45,2988.6,2988.4,2.34232]
[1720369958500,3.0,2989.0,2988.5,2.34224]
[1720369958685,3.0,2989.0,2988.4,4.68465]
[1720369958901,3.0,2989.0,2988.4,2.34232]
[1720369959145,9.701,2989.1,2988.4,2.34232]
[1720369959146,9.701,2989.1,2988.6,2.34222]
[1720369959440,1.39754935,2989.5,2988.4,2.34232]
[1720369959441,1.74623715,2990.6,2990.1,3.537]
[1720369959725,0.1102499,2991.3,2990.8,2.34051]
[1720369959935,0.1102499,2991.3,2990.8,2.24051]
[1720369960130,3.0,2991.0,2990.5,2.34068]
[1720369960333,3.0,2991.0,2990.3,2.34088]
[1720369960630,2.2906,2990.9,2990.1,2.34103]
[1720369960787,2.2906,2990.9,2990.4,2.34076]
[1720369961522,3.0,2990.6,2990.2,2.34096]
[1720369961824,3.0,2990.6,2990.3,2.34089]
[1720369962025,3.0,2990.6,2990.4,2.3408]
[1720369962328,3.0,2990.6,2989.9,2.34118]
[1720369962529,3.0,2990.6,2990.1,2.34101]
[1720369962823,3.0,2990.6,2990.2,2.34097]
[1720369962824,0.3,2990.5,2990.2,2.34097]
[1720369963131,0.3,2990.5,2989.5,8.34648]
[1720369963132,3.0,2990.3,2989.7,2.34135]
[1720369963357,3.0,2990.3,2990.0,2.34106]
[1720369963848,3.0,2989.8,2989.5,2.34151]
[1720369964024,3.0,2989.8,2989.4,2.3416]
[1720369964232,3.3,2989.8,2989.4,2.3416]
[1720369964691,3.0,2989.5,2989.0,2.34186]
[1720369964937,3.0,2989.5,2989.1,2.34177]
[1720369965798,3.0,2989.5,2989.2,2.34176]
[1720369966430,3.0,2989.5,2989.3,2.34163]
[1720369966635,3.0,2989.5,2989.4,2.3416]
[1720369968076,3.0,2989.5,2989.4,4.75010149]
[1720369968220,3.0,2989.5,2989.4,4.6832]
[1720369970050,3.0,2989.5,2989.0,2.3419]
[1720369970268,3.0,2989.2,2988.7,2.3421]
[1720369970470,3.0,2989.2,2989.1,2.34184]
[1720369970670,3.0,2989.6,2989.1,2.34184]
[1720369970980,3.0,2989.6,2989.3,2.34163]
[1720369971296,3.0,2989.6,2989.4,2.34153]
[1720369971496,3.0,2989.6,2989.1,2.34178]
[1720369971702,3.3,2989.6,2989.1,2.34178]
[1720369972052,3.3,2989.6,2988.7,5.34212]
[1720369972053,3.0,2989.2,2988.7,5.34212]
[1720369972276,3.0,2989.2,2988.7,2.34212]
[1720369973037,3.0,2989.2,2988.9,2.34195]
[1720369973242,3.0,2989.2,2988.7,2.34212]
[1720369973439,3.0,2989.2,2988.8,2.34206]
[1720369973680,3.0,2989.2,2988.9,2.34198]
[1720369974276,3.0,2989.2,2988.9,2.34193]
[1720369974488,10.45,2989.5,2989.1,2.34184]
[1720369976382,10.45,2989.5,2989.0,2.40881366]
[1720369977004,10.45,2989.5,2989.1,2.34183]
[1720369978299,3.0,2989.5,2989.4,2.3416]
[1720369978809,3.0,2989.5,2988.8,2.34202]
[1720369978810,3.0,2989.5,2989.0,2.34187]
[1720369979706,3.0,2989.5,2988.1,3.537]
[1720369979707,3.0,2989.2,2988.6,2.34221]
[1720369979979,3.0,2989.2,2988.9,2.34198]
[1720369980502,3.0,2989.2,2988.6,2.34219]
[1720369980820,3.0,2989.2,2988.7,2.34212]
[1720369981108,3.0,2988.9,2988.5,2.34229]
[1720369981288,3.0,2988.9,2988.5,2.34225]
[1720369981467,3.0,2988.9,2988.7,2.34208]
[1720369982477,3.0,2988.9,2988.5,2.34227]
[1720369983207,3.0,2988.9,2988.7,2.34215]
[1720369983809,3.0,2988.9,2988.5,2.34225]
[1720369984019,3.0,2988.9,2988.6,2.34223]
[1720369984704,3.0,2988.9,2988.7,2.34214]
[1720369985131,10.45,2989.3,2988.7,2.34214]
[1720369985313,7.45,2989.3,2989.1,2.34183]
[1720369985534,3.0,2989.7,2989.3,2.34167]
[1720369986415,3.0,2989.7,2989.3,4.68328]
[1720369986703,3.0,2989.7,2989.4,2.34159]
[1720369988315,24.7778,2990.1,2989.6,2.34145]
[1720369988497,5.3878,2990.1,2989.6,2.34145]
[1720369989413,5.3878,2990.1,2989.7,2.3413]
[1720369989749,7.45,2990.4,2990.1,2.341]
[1720369990266,2.3878,2990.6,2990.1,2.341]
[1720369990399,1.15851651,2990.5,2990.3,2.34084]
[1720369990612,7.45,2990.8,2990.6,2.34062]
[1720369990904,3.0,2990.7,2990.6,2.34062]
[1720369991513,3.0,2990.7,2990.2,4.68186]
[1720369991671,3.0,2990.7,2990.4,2.34077]
[1720369991889,3.0,2990.7,2990.5,2.34073]
[1720369992505,3.0,2990.7,2990.5,2.34074]
[1720369992900,3.0,2990.7,2990.2,2.3409]
[1720369993105,3.0,2990.4,2990.0,2.34108]
[1720369993274,3.0,2990.4,2990.2,2.34092]
[1720369993478,3.0,2990.4,2990.2,4.68182]
[1720369994112,3.0,2990.1,2990.0,2.34108]
[1720369994609,5.3878,2990.4,2990.2,2.34095]
[1720369994915,3.0,2990.1,2989.8,2.34124]
[1720369995333,3.0,2990.1,2990.0,2.34113]
[1720369995516,3.0,2990.1,2989.9,2.34116]
[1720369995845,3.0,2990.1,2989.5,3.0]
[1720369995846,5.3878,2990.4,2990.0,2.34113]
[1720369996015,5.3878,2990.4,2989.5,5.3415]
[1720369996016,12.8378,2990.8,2990.3,2.3409]
[1720369996209,12.8378,2990.8,2990.5,2.34074]
[1720369996549,10.45,2990.8,2990.6,2.34065]
[1720369997109,10.45,2990.8,2990.4,2.34081]
[1720369997328,3.0,2990.5,2990.0,2.34106]
[1720369997593,3.0,2990.5,2990.0,4.68214]
[1720369997707,3.3,2990.5,2990.0,2.34106]
[1720369998052,3.0,2990.1,2989.8,2.34125]
[1720369998743,3.0,2990.1,2989.6,2.34144]
[1720369999052,3.3,2990.1,2989.6,2.34144]
[1720369999240,3.0,2989.8,2989.4,2.34156]
[1720369999539,3.0,2989.8,2989.6,2.34144]
[1720369999743,3.0,2989.8,2989.7,2.34137]
[1720369999931,3.0,2990.2,2989.8,2.34126]
[1720370000149,3.0,2990.2,2990.0,2.34113]
[1720370000343,7.45,2990.4,2989.6,2.4905]
[1720370000522,7.45,2990.4,2990.3,4.6818]
[1720370000747,3.0,2990.8,2990.6,2.34064]
[1720370001018,3.0,2990.8,2990.6,4.68125]
[1720370001222,7.45,2990.9,2990.6,2.34061]
[1720370001640,7.45,2990.9,2990.7,2.34056]
[1720370002046,7.5027451,2990.9,2990.7,2.34056]
[1720370002247,7.5027451,2990.9,2990.8,2.34051]
[1720370002858,7.5027451,2990.9,2990.6,2.34059]
[1720370003053,3.0,2990.6,2989.9,2.3412]
[1720370003349,3.0,2990.6,2990.3,2.34087]
[1720370003555,3.0,2990.6,2990.0,3.0]
[1720370003870,3.0,2990.6,2990.3,2.34089]
[1720370004157,3.3527451,2990.6,2990.1,2.34099]
[1720370004357,3.0527451,2990.6,2990.3,2.3409]
[1720370004716,3.0527451,2990.6,2990.1,2.34099]
[1720370005063,3.0527451,2990.6,2990.0,2.34111]
[1720370005213,3.0527451,2990.6,2990.2,2.34092]
[1720370005622,3.35801961,2990.6,2989.7,3.0]
[1720370005853,3.0,2990.3,2989.9,2.3412]
[1720370006036,3.0527451,2990.3,2989.9,2.3412]
[1720370006261,3.0527451,2990.3,2989.8,2.34123]
[1720370006428,3.58637961,2990.3,2989.6,7.68282]
[1720370006756,3.58637961,2990.3,2989.8,2.34129]
[1720370006927,3.58637961,2990.3,2989.8,5.34129]
[1720370007473,3.58637961,2990.3,2989.8,2.34129]
[1720370008181,3.0527451,2990.3,2989.8,4.68251]
[1720370008953,3.0527451,2990.3,2989.9,2.34121]
[1720370009154,0.0527451,2990.3,2990.2,2.34098]
[1720370009757,0.0527451,2990.3,2990.2,4.68196]
[1720370013058,0.0527451,2990.3,2990.2,4.74883153]
[1720370013464,0.0527451,2990.3,2990.2,7.08981153]
[1720370013765,0.0527451,2990.3,2990.2,10.08981153]
[1720370014571,0.0527451,2990.3,2990.2,7.68196]
[1720370016079,0.0527451,2990.3,2990.2,8.450156]
[1720370017481,0.0527451,2990.3,2990.2,7.68196]
[1720370017676,0.0527451,2990.3,2990.2,4.68196]
[1720370019403,0.0527451,2990.3,2990.0,2.34109]
[1720370019704,0.0527451,2990.3,2989.8,2.84224]
[1720370019705,3.0527451,2990.3,2989.8,2.84224]
[1720370019876,2.2927,2990.2,2989.9,2.34116]
[1720370020092,2.2927,2990.2,2990.0,2.34108]
[1720370020283,2.3454451,2990.2,2990.0,2.34108]
[1720370021016,2.3454451,2990.2,2989.9,2.34116]
[1720370021193,2.3454451,2990.2,2990.1,2.34105]
[1720370021717,0.0527451,2990.2,2990.1,2.34105]
[1720370022118,0.0527451,2990.2,2990.1,4.74898119]
[1720370022425,0.0527451,2990.2,2990.1,5.22387931]
[1720370022581,0.0527451,2990.2,2990.1,5.15699812]
[1720370022784,0.0527451,2990.2,2990.1,4.6821]
[1720370024083,0.0527451,2990.2,2990.1,4.74897639]
[1720370024284,0.0527451,2990.2,2990.1,10.02315]
[1720370026534,0.0527451,2990.2,2990.1,4.6821]
[1720370027512,0.0527451,2990.2,2990.1,7.02315]
[1720370027708,0.0527451,2990.2,2990.1,7.775565]
[1720370027918,0.0527451,2990.2,2990.1,4.6821]
[1720370029244,0.0527451,2990.2,2990.1,2.34105]
[1720370030134,0.0527451,2990.2,2990.0,2.84213]
[1720370030530,0.0527451,2990.2,2990.0,0.501]
[1720370031065,0.0527451,2990.2,2990.1,2.34105]
[1720370031222,0.0527451,2990.2,2990.1,5.1831]
[1720370031431,0.0527451,2990.2,2990.1,5.701425]
[1720370032972,0.0527451,2990.2,2990.1,2.84205]
[1720370033832,0.0527451,2990.2,2990.1,0.501]
[1720370034072,2.3454451,2990.2,2990.1,0.501]
[1720370035032,3.3972722,2990.2,2990.1,0.501]
[1720370035238,3.80528461,2990.2,2990.1,0.501]
[1720370035563,6.36634226,2990.2,2990.1,0.501]
[1720370035740,5.20772074,2990.2,2990.1,0.501]
[1720370035945,3.80528461,2990.2,2990.1,0.501]
[1720370036505,5.20772074,2990.2,2990.1,0.501]
[1720370037183,5.20993039,2990.2,2990.1,0.501]
[1720370037544,6.36856309,2990.2,2990.1,0.501]
[1720370037738,4.96391731,2990.2,2990.1,0.501]
[1720370038280,6.36852836,2990.2,2990.1,0.501]
[1720370039069,3.80528461,2990.2,2990.1,0.501]
[1720370039271,4.85861757,2990.2,2990.1,0.501]
[1720370039585,3.39877806,2990.2,2990.1,0.501]
[1720370039781,2.56589433,2990.2,2990.1,2.84205]
[1720370039935,1.51256385,2990.2,2990.1,2.84205]
[1720370040138,2.56588761,2990.2,2990.1,2.84205]
[1720370040372,2.56588761,2990.2,2990.1,0.501]
[1720370040373,2.9171749,2990.2,2990.1,0.501]
[1720370040579,2.91723098,2990.2,2990.1,0.501]
[1720370040805,4.07586179,2990.2,2990.1,0.501]
[1720370041081,1.51261993,2990.2,2990.1,0.501]
[1720370041257,4.4268268,2990.2,2990.1,0.501]
[1720370041784,2.67124581,2990.2,2990.1,0.501]
[1720370042668,5.0124253,2990.2,2990.1,0.501]
[1720370043754,6.76737041,2990.2,2990.1,0.501]
[1720370043945,5.0124253,2990.2,2990.1,0.501]
[1720370045742,5.60858065,2990.2,2990.1,0.501]
[1720370045861,6.76729518,2990.2,2990.1,0.501]
[1720370046389,3.85374289,2990.2,2990.1,0.501]
[1720370046891,2.3937251,2990.2,2990.1,0.501]
[1720370047098,5.30729002,2990.2,2990.1,0.501]
[1720370047463,2.67151737,2990.2,2990.1,0.501]
[1720370047884,0.0527451,2990.2,2990.1,0.501]
[1720370048092,4.42616492,2990.2,2990.1,0.501]
[1720370048394,6.76714492,2990.2,2990.1,0.501]
[1720370048594,5.01239117,2990.2,2990.1,0.501]
[1720370048794,3.85368937,2990.2,2990.1,0.501]
[1720370049186,3.55251151,2990.2,2990.1,0.501]
[1720370050000,3.90268838,2990.2,2990.1,0.501]
[1720370050165,5.36269954,2990.2,2990.1,0.501]
[1720370052209,5.3626221,2990.2,2990.1,0.501]
[1720370052498,1.56164769,2990.2,2990.1,0.501]
[1720370052665,1.56162902,2990.2,2990.1,0.501]
[1720370052868,0.40292197,2990.2,2990.1,0.501]
[1720370053875,1.86276969,2990.2,2990.1,0.501]
[1720370054501,3.02144222,2990.2,2990.1,0.501]
[1720370054699,8.56565344,2990.2,2990.1,0.501]
[1720370055002,10.90663344,2990.2,2990.1,0.501]
[1720370055395,11.57338319,2990.2,2990.1,0.501]
[1720370055588,12.73225113,2990.2,2990.1,0.501]
[1720370056386,14.83662883,2990.2,2990.1,0.501]
[1720370056709,14.83662883,2990.2,2990.1,0.1565625]
[1720370056892,14.83662883,2990.2,2988.6,2.34218]
[1720370056893,3.0,2989.0,2988.6,2.34218]
[1720370057085,3.0,2988.6,2988.4,2.34234]
[1720370057638,3.0,2988.6,2988.1,2.4442]
[1720370057639,3.0,2988.6,2988.3,2.34242]
[1720370057778,3.0,2988.6,2988.3,2.34245]
[1720370058497,3.0,2988.3,2988.1,2.34262]
[1720370058683,3.0,2988.3,2988.0,4.68532]
[1720370058986,3.0,2988.3,2988.1,2.3426]
[1720370059408,3.0,2988.3,2987.9,2.34275]
[1720370059715,3.0,2988.0,2987.8,2.34282]
[1720370060309,3.0,2988.0,2987.5,2.34303]
[1720370060477,3.0,2987.7,2987.5,2.34303]
[1720370060940,3.0,2987.7,2987.3,4.68642]
[1720370061076,3.0,2987.7,2987.3,2.34319]
[1720370061276,3.0,2987.7,2987.4,2.34316]
[1720370061507,3.0,2987.7,2987.3,2.34319]
[1720370061706,3.0,2987.7,2987.4,2.34312]
[1720370062024,3.0,2987.7,2987.4,5.41006097]
[1720370062578,3.0,2987.7,2987.5,2.34309]
[1720370062780,3.0,2987.7,2987.5,5.34309]
[1720370062985,3.0,2987.7,2987.5,2.34309]
[1720370063513,3.0,2987.7,2987.3,2.34318]
[1720370064111,3.0,2987.7,2987.4,2.34309]
[1720370064287,3.0,2987.7,2987.3,2.811836]
[1720370064487,3.0,2987.7,2987.3,2.34318]
[1720370066429,3.0,2987.4,2987.2,2.34332]
[1720370066880,3.0,2987.4,2987.1,2.34336]
[1720370067278,3.0,2987.4,2987.1,2.34335]
[1720370068233,0.35036601,2987.8,2986.9,2.34352]
[1720370068234,3.0,2987.1,2986.9,2.34352]
[1720370068432,3.0,2987.1,2986.8,2.34364]
[1720370069519,3.0,2987.1,2986.8,4.68722]
[1720370069722,3.0,2987.1,2986.9,3.0]
[1720370069927,3.0,2987.1,2986.7,3.0]
[1720370070097,3.0,2987.1,2986.7,2.34371]
[1720370070343,3.0,2987.1,2986.7,5.34371]
[1720370071086,3.0,2987.1,2986.6,2.34376]
[1720370071244,3.0,2987.1,2986.7,2.34372]
[1720370072377,7.45,2987.4,2986.5,2.34382]
[1720370072378,3.0,2986.8,2986.5,2.34382]
[1720370072563,3.0,2986.8,2986.4,2.34391]
[1720370072856,3.0,2986.8,2986.4,4.6878]
[1720370073069,3.0,2986.8,2986.5,2.34387]
[1720370074200,5.2916,2986.8,2986.5,2.34387]
[1720370074543,3.0,2986.5,2986.2,2.34411]
[1720370074777,3.0,2986.5,2986.2,2.34405]
[1720370074996,3.0,2986.5,2986.3,2.34399]
[1720370075488,3.0,2986.5,2986.1,2.34413]
[1720370075646,3.0,2986.5,2986.2,2.34409]
[1720370075855,2.2916,2986.8,2985.7,2.34443]
[1720370075856,3.0,2986.1,2985.7,2.34443]
[1720370076071,3.0,2986.1,2985.9,2.34434]
[1720370076448,3.0,2986.1,2985.9,2.34429]
[1720370077187,3.0,2986.1,2986.0,2.34427]
[1720370077897,3.0,2986.4,2986.2,2.34411]
[1720370078260,3.0,2986.1,2985.8,2.34437]
[1720370078573,3.0,2986.1,2985.6,5.34454]
[1720370078803,3.0,2986.1,2985.6,2.34454]
[1720370079176,3.0,2986.1,2985.8,2.34436]
[1720370079881,3.0,2986.1,2985.8,4.68872]
[1720370080100,3.0,2986.1,2985.8,2.34436]
[1720370080263,3.0,2986.1,2985.8,4.68873]
[1720370080471,3.0,2986.1,2985.8,2.34436]
[1720370081218,3.0,2986.1,2985.7,3.0]
[1720370081490,3.0,2985.7,2985.5,5.34465]
[1720370082102,3.0,2985.7,2985.6,2.34458]
[1720370082926,3.0,2985.7,2985.5,3.0]
[1720370083077,3.0,2985.7,2985.4,4.6894]
[1720370083269,3.0,2985.7,2985.5,3.0]
[1720370083469,3.0,2985.7,2985.4,4.68937]
[1720370083721,3.0,2985.7,2985.5,3.0]
[1720370083923,3.0,2985.7,2985.4,2.34468]
[1720370084577,3.0,2985.7,2985.2,2.34483]
[1720370084803,3.0,2985.7,2985.4,2.34469]
[1720370085306,3.0,2985.7,2985.4,2.34468]
[1720370085474,3.0,2985.7,2985.6,2.34458]
[1720370086095,3.0,2985.7,2985.5,3.0]
[1720370086283,3.0,2985.7,2985.4,2.34468]
[1720370087105,3.0,2985.4,2985.2,2.34484]
[1720370087273,3.0,2985.4,2985.0,4.69002]
[1720370087473,3.0,2985.4,2984.6,2.34535]
[1720370087781,3.0,2985.4,2985.2,2.34485]
[1720370087972,3.0,2985.4,2984.9,2.34507]
[1720370087973,3.0,2985.4,2985.0,2.34501]
[1720370088199,3.0,2985.4,2985.1,2.34497]
[1720370088705,3.0,2985.4,2984.9,2.34506]
[1720370089206,3.0,2985.1,2984.9,2.34506]
[1720370091305,3.0,2985.1,2984.7,2.34524]
[1720370091691,3.0,2985.1,2984.7,4.69047]
[1720370092231,3.0,2985.1,2984.9,2.34513]
[1720370093619,3.0,2985.1,2985.0,2.34505]
[1720370094185,3.0,2985.4,2985.1,2.34491]
[1720370094385,3.0,2985.4,2985.2,2.34489]
[1720370098437,12.8673,2985.6,2985.3,2.34482]
[1720370098649,10.45,2985.6,2985.3,2.34482]
[1720370100646,3.0,2985.2,2985.1,2.34492]
[1720370101414,3.0,2985.2,2985.1,4.6899]
[1720370102368,3.0,2985.2,2985.1,2.34492]
[1720370102672,3.0,2985.2,2984.9,2.34509]
[1720370102673,5.2796,2985.2,2984.9,2.34509]
[1720370102865,3.0,2984.9,2984.8,2.34521]
[1720370105241,5.2796,2985.2,2984.9,2.3451]
[1720370105459,5.2796,2985.5,2984.8,0.53604831]
[1720370105668,5.2796,2985.5,2985.0,2.34505]
[1720370105980,3.0,2985.5,2985.2,2.34483]
[1720370106146,3.0,2985.2,2985.0,2.34499]
[1720370106541,3.0,2984.9,2984.8,2.34517]
[1720370107278,3.0,2984.9,2984.8,4.69038]
[1720370107578,3.0,2985.2,2985.0,2.34501]
[1720370107778,7.80069188,2985.6,2985.5,2.34466]
[1720370107964,7.45,2985.6,2985.5,4.68932]
[1720370109179,3.0,2985.9,2985.8,2.34443]
[1720370110872,2.2796,2986.2,2986.0,2.34422]
[1720370110873,3.0,2986.2,2986.0,2.34422]
[1720370111655,3.0,2986.2,2985.8,2.34437]
[1720370111849,3.0,2986.2,2985.9,2.34428]
[1720370112171,3.43983795,2986.1,2985.9,2.34428]
[1720370112359,2.2796,2986.1,2985.9,2.34428]
[1720370112564,3.0,2986.2,2986.1,2.34419]
[1720370113470,3.0,2986.2,2986.1,4.68838]
[1720370113915,3.0,2986.2,2986.1,2.34419]
[1720370114381,3.0,2986.2,2986.1,4.68838]
[1720370114559,7.45,2986.4,2986.3,2.34403]
[1720370114962,11.94,2986.7,2986.1,2.34419]
[1720370114963,3.0,2986.7,2986.1,2.34419]
[1720370115171,3.0,2986.7,2986.6,2.3438]
[1720370115888,3.0,2986.7,2986.3,2.34398]
[1720370116187,3.0,2986.7,2985.8,2.34437]
[1720370116188,3.0,2986.4,2985.6,2.34456]
[1720370116487,3.0,2986.4,2986.3,2.34403]
[1720370117770,3.0,2986.4,2986.2,2.34405]
[1720370117989,3.0,2986.4,2986.3,2.34403]
[1720370118512,7.80058223,2986.9,2986.3,2.78877503]
[1720370118656,7.45,2986.9,2986.8,4.68728]
[1720370118853,3.0,2987.3,2987.2,2.34333]
[1720370119454,3.0,2987.8,2987.1,2.31995128]
[1720370120079,3.0,2987.8,2987.4,2.34313]
[1720370120279,3.0,2987.5,2987.4,2.34313]
[1720370120590,3.0,2987.2,2987.0,2.34346]
[1720370120766,3.0,2987.2,2987.1,2.34339]
[1720370120962,3.0,2987.5,2987.3,2.34323]
[1720370121206,3.0,2987.8,2987.5,2.34304]
[1720370121382,2.291,2987.9,2987.5,2.34304]
[1720370121567,7.45,2988.2,2987.6,0.3012412]
[1720370121777,7.45,2988.2,2988.1,2.34262]
[1720370121996,2.291,2988.4,2988.1,2.34262]
[1720370122161,3.0,2988.6,2988.2,2.34251]
[1720370122374,3.0,2988.6,2988.0,2.34266]
[1720370122375,3.0,2988.2,2988.0,2.34264]
[1720370122605,3.0,2988.2,2987.7,2.3429]
[1720370122606,3.0,2987.9,2987.7,2.3429]
[1720370122914,3.0,2987.9,2987.8,2.34286]
[1720370123293,3.0,2987.9,2987.4,2.34316]
[1720370123599,3.0,2987.9,2987.8,2.34286]
[1720370123957,3.0,2987.9,2987.7,2.34287]
[1720370125193,3.0,2987.9,2987.5,2.34304]
[1720370125413,3.0,2987.6,2987.3,2.34323]
[1720370126497,3.0,2987.6,2987.4,2.34317]
[1720370127878,3.0,2987.6,2987.5,2.34309]
[1720370128086,10.45,2988.2,2987.7,2.34288]
[1720370128295,3.0,2987.9,2987.7,2.34288]
[1720370128901,10.45,2988.2,2987.7,2.253]
[1720370129198,10.45,2988.2,2988.1,2.34262]
[1720370129374,3.0,2988.2,2988.1,2.34262]
[1720370129896,7.45,2988.7,2988.2,2.34253]
[1720370130072,7.45,2988.7,2988.3,2.34242]
[1720370131281,3.0,2988.5,2988.1,2.34255]
[1720370131682,7.45,2988.7,2987.7,2.253]
[1720370131683,3.0,2988.2,2987.7,2.253]
[1720370131924,3.0,2987.9,2987.6,2.34299]
[1720370132403,3.0,2987.9,2987.8,2.34286]
[1720370132792,3.0,2987.9,2987.5,2.34306]
[1720370133008,3.0,2987.9,2987.7,2.34293]
[1720370133212,3.0,2987.9,2987.8,2.34286]
[1720370133753,3.0,2988.2,2988.1,2.34262]
[1720370134007,3.0,2988.2,2987.9,2.34273]
[1720370134399,3.0,2988.2,2988.0,2.34269]
[1720370134800,3.0,2988.2,2987.8,2.34282]
[1720370135285,3.0,2988.2,2987.8,2.3428]
[1720370136088,3.0,2988.2,2987.9,2.34276]
[1720370137908,3.0,2988.5,2988.0,2.34265]
[1720370138113,3.0,2988.5,2988.2,2.34254]
[1720370138623,7.45,2988.7,2988.5,2.34229]
[1720370138791,7.45,2988.7,2988.3,2.34246]
[1720370139131,7.45,2988.7,2988.4,2.34238]
[1720370139485,7.45,2988.7,2988.1,4.59558]
[1720370139690,5.4205,2988.4,2988.2,2.34253]
[1720370139891,3.0,2988.4,2988.2,2.34253]
[1720370141290,10.45,2988.7,2988.5,2.34231]
[1720370141730,3.0,2988.7,2988.5,2.34231]
[1720370142310,2.4205,2989.0,2987.6,4.59594]
[1720370142311,3.0,2988.4,2988.1,2.34257]
[1720370142512,3.0,2988.4,2988.1,4.68514]
[1720370142828,3.0,2988.4,2988.0,2.34265]
[1720370142993,3.0,2988.4,2987.6,2.253]
[1720370142994,3.0,2988.4,2988.1,2.34255]
[1720370143936,3.0,2988.4,2988.1,4.68512]
[1720370144222,3.0,2988.4,2988.0,2.34268]
[1720370144424,3.0,2988.4,2988.1,2.34255]
[1720370146667,3.0,2988.4,2987.8,2.3428]
[1720370146668,3.0,2988.1,2987.8,2.3428]
[1720370146873,3.0,2988.1,2987.8,4.6856]
[1720370147746,3.0,2988.1,2987.9,2.34278]
[1720370147988,3.0,2988.1,2987.8,2.3428]
[1720370148551,3.0,2988.1,2987.9,2.34277]
[1720370149233,7.45,2988.5,2988.1,2.34255]
[1720370149234,3.0,2988.4,2988.1,2.34255]
[1720370149428,3.0,2988.4,2988.1,2.3412929]
[1720370150056,3.0,2988.4,2988.2,2.34254]
[1720370152743,7.45,2988.5,2988.2,2.34254]
[1720370152941,7.45,2988.5,2988.4,2.34239]
[1720370153680,14.94,2988.8,2988.4,2.34239]
[1720370153681,3.0,2988.8,2988.6,2.34221]
[1720370153864,3.0,2988.9,2988.6,2.34221]
[1720370154067,3.0,2988.6,2988.3,0.2409468]
[1720370154278,3.0,2988.6,2988.5,2.34231]
[1720370155964,3.0,2988.6,2988.3,2.34239]